fUST/lending_fUST_20240405
["ID","MTS","AMOUNT","RATE_DAILY","PERIOD"]
[321568490,1712317838562,-73.84819362,0.00034987,4]
[321568492,1712317838571,-187.83480638,0.00034987,4]
[321568673,1712317840567,-407.76045621,0.00034986,4]
[321568675,1712317840576,-2312.16519362,0.00034987,4]
[321568677,1712317840585,-400.0,0.00034999,2]
[321568679,1712317840595,-7232.0,0.00035,2]
[321568681,1712317840606,-329.0,0.00038499,3]
[321568683,1712317840614,-200.0,0.0004,2]
[321568685,1712317840623,-9297.8353368,0.00040503,2]
[321568687,1712317840632,-250.0,0.0004158,2]
[321568688,1712317840642,-1387.99801533,0.00041999,4]
[321568690,1712317840651,-7881.0,0.00041999,5]
[321568692,1712317840660,-341.46,0.00042,30]
[321568694,1712317840669,-2476.93205732,0.00042832,11]
[321568697,1712317840678,-165.88970626,0.00042832,2]
[321568698,1712317840687,-336.9028606,0.00043376,2]
[321568700,1712317840696,-153.0,0.00043376,2]
[321568702,1712317840706,-263.4365193,0.00043376,2]
[321568704,1712317840715,-307.0228529,0.00043376,2]
[321568706,1712317840724,-153.0,0.00043378,2]
[321568708,1712317840733,-153.0,0.00043378,2]
[321568711,1712317840743,-202.5506203,0.00043378,2]
[321568712,1712317840754,-406.9732802,0.00043387,2]
[321568714,1712317840764,-153.0,0.00043387,2]
[321568716,1712317840773,-306.0,0.00043387,2]
[321568719,1712317840783,-153.0,0.00043387,2]
[321568720,1712317840792,-153.0,0.00043387,2]
[321568723,1712317840802,-306.0,0.00043387,2]
[321568725,1712317840811,-153.0,0.00043387,2]
[321568726,1712317840822,-2476.93205732,0.00044174,11]
[321568728,1712317840834,-153.0,0.00044198,2]
[321568730,1712317840844,-153.0,0.00044198,2]
[321568732,1712317840853,-153.0,0.00044198,2]
[321568734,1712317840863,-153.0,0.00044198,2]
[321568736,1712317840872,-153.0,0.00044198,2]
[321568738,1712317840881,-306.0,0.00044198,2]
[321568740,1712317840890,-153.0,0.00044209,2]
[321568742,1712317840899,-153.0,0.00044209,2]
[321568744,1712317840908,-306.0,0.00044209,2]
[321568746,1712317840918,-153.0,0.00044209,2]
[321568748,1712317840927,-153.0,0.00044209,2]
[321568750,1712317840937,-153.0,0.00044209,2]
[321568752,1712317840946,-153.0,0.00044209,2]
[321568754,1712317840954,-153.0,0.00044209,2]
[321568756,1712317840964,-161.15104151,0.00044575,3]
[321568758,1712317840973,-1384.67668692,0.00044582,4]
[321568760,1712317840982,-322.42897924,0.00044936,2]
[321568762,1712317840991,-2837.02181507,0.00044936,2]
[321568764,1712317841000,-154.1040731,0.00044986,2]
[321568766,1712317841009,-500.0,0.00044999,2]
[321568768,1712317841018,-7477.93759232,0.00045,120]
[321568770,1712317841027,-228.57815858,0.00045,2]
[321568772,1712317841036,-11494.0,0.00045,2]
[321568774,1712317841045,-4787.0,0.00045,2]
[321568776,1712317841054,-2297.764095,0.00045,49]
[321568778,1712317841063,-255.71107341,0.00045024,2]
[321568780,1712317841071,-247.91953566,0.00045025,4]
[321568781,1712317841080,-500.0,0.00045025,120]
[321568782,1712317841089,-332.22952093,0.00045025,120]
[321568783,1712317841098,-500.0,0.00045025,120]
[321568784,1712317841110,-499.95470998,0.00045025,120]
[321568785,1712317841118,-156.0371519,0.00045025,120]
[321568786,1712317841127,-446.88114773,0.00045025,120]
[321568787,1712317841137,-500.0,0.00045025,120]
[321568788,1712317841149,-500.0,0.00045025,120]
[321568789,1712317841158,-478.39237623,0.00045025,120]
[321568790,1712317841167,-267.32451371,0.00045026,2]
[321568791,1712317841175,-243.45713354,0.00045026,4]
[321568792,1712317841184,-626.28936372,0.00045026,4]
[321568793,1712317841193,-283.0724487,0.00045026,4]
[321568794,1712317841202,-860.89376927,0.00045026,4]
[321568795,1712317841211,-4525.14300736,0.00045026,4]
[321568796,1712317841219,-1882.11066926,0.00045026,4]
[321568797,1712317841228,-629.98549488,0.00045026,4]
[321568798,1712317841237,-1065.79988054,0.00045026,4]
[321568799,1712317841246,-667.41417189,0.00045026,2]
[321568800,1712317841254,-6975.72429532,0.00045026,4]
[321568801,1712317841263,-1532.65201858,0.00045026,4]
[321568802,1712317841272,-158.40349119,0.00045026,4]
[321568803,1712317841281,-394.36836775,0.00045026,4]
[321568804,1712317841289,-855.4120665,0.00045026,4]
[321568805,1712317841298,-311.17073746,0.00045028,2]
[321568806,1712317841307,-151.0,0.0004503,7]
[321568807,1712317841316,-31651.11424949,0.00045031,4]
[321568808,1712317841325,-151.0,0.00045031,7]
[321568809,1712317841334,-2955.54428156,0.00045032,120]
[321568810,1712317841342,-1452.10424386,0.00045033,4]
[321568811,1712317841352,-1804.62664909,0.00045035,4]
[321568812,1712317841361,-214.93945542,0.00045035,4]
[321568813,1712317841370,-1269.17204717,0.00045035,4]
[321568814,1712317841379,-22101.47378,0.00045036,5]
[321568815,1712317841391,-1611.70348529,0.00045036,5]
[321568907,1712317843599,-497.58201177,0.00045034,7]
[321568909,1712317843609,-2427.59857495,0.00045036,5]
[321568915,1712317843660,-1200.31355951,0.00045036,5]
[321569685,1712318078793,196.41220293,0.00021,2]
[321569686,1712318079601,-2298.99325846,0.0002877,2]
[321569687,1712318079633,-46.91822976,0.0002877,2]
[321569690,1712318384295,1009.0,0.0003461,30]
[321569693,1712318406851,10000.0,0.00034619,30]
[321569697,1712318422563,10000.0,0.00034619,30]
[321569766,1712319033071,-675.06529181,0.00032504,4]
[321569768,1712319033084,-581.33349132,0.00032504,4]
[321569770,1712319033093,-701.19315383,0.00032505,4]
[321569771,1712319033101,-171.48951949,0.00032506,4]
[321569773,1712319033114,-1578.51048051,0.00032506,4]
[321569774,1712319033124,-349.97342803,0.00032507,4]
[321569775,1712319033135,-485.51705993,0.00032519,2]
[321569776,1712319033147,-222.60395627,0.00033155,4]
[321569777,1712319033157,-293.0,0.00034618,2]
[321569778,1712319033166,-155.0,0.00034619,4]
[321569779,1712319033178,-10781.04600243,0.00034619,4]
[321569780,1712319033187,-1239.0,0.00037,120]
[321569781,1712319033197,-179.9951716,0.00037366,120]
[321569782,1712319033209,-1968.56557596,0.00037366,2]
[321569783,1712319033219,-485.51705993,0.00037519,2]
[321569784,1712319033229,-5654.408966,0.00037754,2]
[321569785,1712319033239,-1857.69904299,0.0003858,9]
[321569786,1712319033249,-250.0,0.0003868,2]
[321569787,1712319033258,-172.1084014,0.000399,2]
[321569788,1712319033268,-2923.04008313,0.00039999,120]
[321569789,1712319033284,-166.9379357,0.0004,2]
[321569790,1712319033295,-3848.08452851,0.0004,120]
[321569791,1712319033306,-168.47129,0.0004,2]
[321569792,1712319033317,-1857.69904299,0.00040231,9]
[321569793,1712319033326,-166.666666,0.00041821,2]
[321569794,1712319033337,-1857.69904299,0.00041882,10]
[321569795,1712319033347,-4400.33773572,0.00041934,4]
[321569796,1712319033357,-485.51705993,0.00042519,2]
[321569797,1712319033367,-202.171108,0.00042851,2]
[321569798,1712319033379,-202.171108,0.00042851,120]
[321569799,1712319033390,-500.0,0.00043,2]
[321569800,1712319033402,-500.0,0.000435,2]
[321569801,1712319033412,-1857.69904299,0.00043533,11]
[321569802,1712319033421,-150.0,0.00043755,60]
[321569803,1712319033433,-500.0,0.00043845,5]
[321569804,1712319033444,-500.0,0.00043845,5]
[321569805,1712319033455,-2374.18,0.00043845,5]
[321569806,1712319033465,-500.0,0.00044,2]
[321569807,1712319033476,-500.0,0.00044119,5]
[321569808,1712319033486,-500.0,0.00044119,5]
[321569809,1712319033498,-2374.18,0.00044119,5]
[321569810,1712319033508,-501.75697509,0.00044205,5]
[321569811,1712319033520,-155.5884835,0.00044206,2]
[321569812,1712319033535,-155.0,0.00044206,4]
[321569813,1712319033544,-2845.31390782,0.00044206,4]
[321569814,1712319033554,-248.95478592,0.00044206,4]
[321569815,1712319033563,-561.9301879,0.00044206,4]
[321569816,1712319033573,-155.02170304,0.00044206,4]
[321569817,1712319033582,-156.472743,0.00044206,4]
[321569818,1712319033591,-2363.16911365,0.00044206,4]
[321569819,1712319033601,-542.62028101,0.00044206,2]
[321569820,1712319033610,-310.52271559,0.00044206,7]
[321569821,1712319033619,-360.31706093,0.00044206,4]
[321569822,1712319033629,-823.94467129,0.00044206,4]
[321569918,1712319038694,-669.64370756,0.00044206,4]
[321569921,1712319038703,-537.11040707,0.00044206,4]
[321569924,1712319038712,-122.14088537,0.00044206,4]
[321569935,1712319038757,-32.88701965,0.00044206,4]
[321569938,1712319038766,-290.18413581,0.00044206,4]
[321569941,1712319038776,-331.41593695,0.00044206,4]
[321569942,1712319038788,-356.66979468,0.00044206,120]
[321569947,1712319038798,-191.52049189,0.00044206,120]
[321569948,1712319038807,-204.65764226,0.00044206,120]
[321569952,1712319038817,-593.51771287,0.00044206,120]
[321569956,1712319038826,-500.0,0.00044207,5]
[321569958,1712319038836,-500.0,0.00044207,5]
[321569960,1712319038846,-500.0,0.00044207,5]
[321569965,1712319038857,-500.0,0.00044207,5]
[321569967,1712319038866,-500.0,0.00044207,5]
[321569970,1712319038876,-500.0,0.00044207,5]
[321569973,1712319038886,-500.0,0.00044207,5]
[321569977,1712319038895,-500.0,0.00044207,5]
[321569980,1712319038904,-1472.29,0.00044207,5]
[321569981,1712319038913,-1322.49,0.00044207,5]
[321569985,1712319038923,-2795.14,0.00044207,5]
[321569988,1712319038932,-579.24,0.00044207,5]
[321569991,1712319038942,-1568.07,0.00044207,5]
[321569994,1712319038951,-2932.66,0.00044207,5]
[321569997,1712319038960,-500.0,0.00044207,5]
[321570000,1712319038970,-500.0,0.00044207,5]
[321570003,1712319038979,-509.03983397,0.00044207,5]
[321570006,1712319038989,-500.0,0.00044207,5]
[321570009,1712319038998,-5841.55928282,0.00044207,5]
[321570013,1712319039010,-1018.56956097,0.00044207,5]
[321570016,1712319039020,-962.61,0.00044207,5]
[321570019,1712319039034,-256.97115621,0.00044207,5]
[321570022,1712319039043,-2744.68,0.00044207,5]
[321570025,1712319039052,-1276.4,0.00044207,5]
[321570028,1712319039061,-500.0,0.00044207,5]
[321570030,1712319039070,-500.0,0.00044207,5]
[321570033,1712319039079,-500.0,0.00044207,5]
[321570034,1712319039089,-500.0,0.00044208,5]
[321570038,1712319039098,-511.86887927,0.00044208,5]
[321570041,1712319039110,-500.0,0.00044208,5]
[321570044,1712319039123,-500.0,0.00044208,5]
[321570047,1712319039135,-507.53879091,0.00044208,5]
[321570049,1712319039144,-506.83259178,0.00044208,5]
[321570051,1712319039153,-500.0,0.00044208,5]
[321570054,1712319039165,-500.0,0.00044208,5]
[321570057,1712319039175,-503.50166607,0.00044208,5]
[321570061,1712319039185,-505.03676177,0.00044208,5]
[321570063,1712319039194,-239.13541937,0.00044208,5]
[321570245,1712319040797,-265.22588453,0.00044208,5]
[321570247,1712319040807,-500.0,0.00044208,5]
[321570249,1712319040816,-734.77248541,0.00044208,5]
[321570257,1712319040892,-982.18751459,0.00044208,5]
[321570259,1712319040902,-500.0,0.00044208,5]
[321570261,1712319040912,-212.66998541,0.00044208,5]
[321570263,1712319040924,-287.33001459,0.00044208,5]
[321570265,1712319040933,-605.17768539,0.00044208,5]
[321570267,1712319040942,-81.92814923,0.00044208,5]
[321570575,1712319043936,-418.07185077,0.00044208,5]
[321570577,1712319043946,-500.0,0.00044208,5]
[321570579,1712319043955,-500.0,0.00044208,5]
[321570581,1712319043965,-500.0,0.00044208,5]
[321570583,1712319043974,-504.69811811,0.00044208,5]
[321570585,1712319043983,-3674.28,0.00044208,5]
[321570587,1712319043996,-500.0,0.00044208,5]
[321570588,1712319044005,-3557.96,0.00044208,7]
[321570589,1712319044013,-525.65,0.00044208,5]
[321570590,1712319044022,-898.92,0.00044208,5]
[321570591,1712319044031,-500.0,0.00044208,5]
[321570592,1712319044041,-4920.42003112,0.00044208,5]
[321570594,1712319044053,-3874.53441545,0.00044208,5]
[321570910,1712319046768,-995.072269,0.00044207,4]
[321570913,1712319046778,-5424.927731,0.00044208,5]
[321575651,1712320081511,-154.98450155,0.00033449,4]
[321575652,1712320081541,-161.0358337,0.0003345,2]
[321575653,1712320081566,-1750.0,0.00033538,4]
[321575654,1712320081592,-7760.59074132,0.00033539,4]
[321575655,1712320081637,-8449.92512891,0.00033563,4]
[321575656,1712320081664,-1077.94511554,0.00033565,4]
[321575657,1712320081691,-244.18067602,0.00033566,4]
[321575658,1712320081720,-158.34331194,0.00034619,4]
[321575659,1712320081752,242.99469102,0.00033545,2]
[321575660,1712320118686,-157.00530898,0.00033545,2]
[321575688,1712320232838,-150.0,0.00035002,2]
[321575689,1712320232849,-1151.42056306,0.00035002,4]
[321575690,1712320232859,-3893.20386406,0.00035003,2]
[321575825,1712320238105,-2583.19353789,0.00035003,2]
[321575829,1712320238117,-2423.87192737,0.00035003,2]
[321575902,1712320243037,-852.46450048,0.00035003,2]
[321575903,1712320243047,-235.0499572,0.00035409,2]
[321575904,1712320243056,-1259.6237218,0.00038028,2]
[321575905,1712320243065,-166.666666,0.00041096,2]
[321575906,1712320243079,-2000.0,0.00041997,4]
[321575907,1712320243088,-1387.70489789,0.00041998,2]
[321575908,1712320243098,-631.48066669,0.00043175,15]
[321575911,1712320243107,-500.0,0.00043843,5]
[321575913,1712320243117,-500.0,0.00043843,5]
[321575915,1712320243126,-509.42788603,0.00043843,5]
[321575917,1712320243135,-1267.38,0.00043843,5]
[321575918,1712320243144,-500.0,0.00043843,5]
[321575919,1712320243154,-500.0,0.00043843,5]
[321575920,1712320243163,-1033.70170402,0.00043843,5]
[321575938,1712320245876,-6709.35829598,0.00043843,5]
[321575940,1712320245885,-2176.34,0.00043843,5]
[321575941,1712320245895,-1223.22,0.00043843,5]
[321575942,1712320245905,-254.36473409,0.00043843,120]
[321575943,1712320245914,-500.0,0.00043843,5]
[321575944,1712320245924,-2583.19353789,0.00043844,3]
[321575945,1712320245934,-500.0,0.00043844,5]
[321575946,1712320245943,-529.49827642,0.00043844,5]
[321575947,1712320245953,-500.0,0.00043844,5]
[321575948,1712320245962,-500.0,0.00043844,5]
[321575949,1712320245972,-500.0,0.00043844,5]
[321575950,1712320245981,-500.0,0.00043844,5]
[321575951,1712320245993,-500.0,0.00043844,5]
[321575952,1712320246005,-312.19784353,0.00043844,5]
[321575953,1712320246014,-500.0,0.00043844,5]
[321575954,1712320246024,-972.8,0.00043844,5]
[321575955,1712320246033,-500.0,0.00043844,5]
[321575956,1712320246042,-507.93082002,0.00043844,5]
[321575957,1712320246052,-500.0,0.00043844,5]
[321575958,1712320246060,-500.0,0.00043844,5]
[321575959,1712320246069,-500.0,0.00043844,5]
[321575960,1712320246084,-116.25848573,0.00043844,5]
[321575961,1712320246096,-383.74151427,0.00043844,5]
[321575962,1712320246106,-1008.29644528,0.00043844,5]
[321576116,1712321433168,-166.666666,0.00041366,2]
[321576118,1712321433178,-1315.90921493,0.00041545,4]
[321576120,1712321433188,-2000.0,0.00041546,4]
[321576122,1712321433197,-1032.11817233,0.0004165,4]
[321576274,1712321438102,-3344.04441383,0.0004165,4]
[321576277,1712321438111,-352.0,0.00041651,3]
[321576280,1712321438121,-502.0,0.00041651,5]
[321576283,1712321438131,-5624.06655695,0.00041652,2]
[321576492,1712321440249,-1524.47116756,0.00041652,2]
[321576494,1712321440259,-150.0,0.00041744,2]
[321576496,1712321440269,-282.82676597,0.00042964,4]
[321576498,1712321440279,-153.0,0.00043342,2]
[321576500,1712321440290,-153.0,0.00043342,2]
[321576502,1712321440300,-153.0,0.00043342,2]
[321576504,1712321440309,-153.0,0.00043342,2]
[321576506,1712321440318,-202.5506203,0.00043396,2]
[321576508,1712321440327,-202.5506203,0.00043396,2]
[321576510,1712321440336,-202.5506203,0.00043396,2]
[321576512,1712321440347,-202.5506203,0.00043396,2]
[321576514,1712321440356,-306.0,0.00043616,2]
[321576516,1712321440365,-388.27208599,0.00043741,2]
[321576518,1712321440375,-388.27208596,0.00043741,2]
[321576520,1712321440384,-388.27208596,0.00043742,2]
[321576522,1712321440393,-388.27208596,0.00043742,2]
[321576524,1712321440402,-388.27208596,0.00043742,2]
[321576526,1712321440411,-973.13915544,0.00043743,2]
[321576529,1712321440423,-526.86084456,0.00043743,2]
[321576531,1712321440433,-155.08995217,0.00043841,4]
[321576533,1712321440442,-500.0,0.00043841,5]
[321576535,1712321440451,-463.3472523,0.00043841,5]
[321576724,1712321443418,-36.6527477,0.00043841,5]
[321576726,1712321443428,-500.0,0.00043841,5]
[321576728,1712321443437,-500.0,0.00043841,5]
[321576730,1712321443446,-500.0,0.00043841,5]
[321576732,1712321443455,-500.0,0.00043841,5]
[321576734,1712321443464,-514.06177178,0.00043841,5]
[321576735,1712321443473,-500.0,0.00043841,5]
[321576736,1712321443483,-1214.58,0.00043841,5]
[321576737,1712321443494,-1410.94,0.00043841,5]
[321576738,1712321443503,-500.0,0.00043841,5]
[321576739,1712321443513,-500.0,0.00043841,5]
[321576740,1712321443522,-508.19184045,0.00043841,5]
[321576741,1712321443532,-1250.85915584,0.00043841,5]
[321576742,1712321443544,-1427.82084416,0.00043841,5]
[321576743,1712321443553,-500.0,0.00043841,5]
[321576744,1712321443662,-517.38717591,0.00043841,5]
[321576745,1712321443679,-154.95792238,0.00043841,5]
[321576746,1712321443688,-500.0,0.00043841,5]
[321576747,1712321443698,-196.57376493,0.00043841,5]
[321576748,1712321443708,-7420.43,0.00043841,5]
[321576749,1712321443717,-606.17496637,0.00043841,5]
[321576750,1712321443726,-2630.32,0.00043841,5]
[321576751,1712321443735,-1172.25,0.00043841,5]
[321576752,1712321443745,-500.0,0.00043841,5]
[321576753,1712321443754,-506.47324708,0.00043841,5]
[321576754,1712321443763,-500.0,0.00043841,5]
[321576755,1712321443772,-507.63057632,0.00043841,5]
[321576756,1712321443782,-2085.65,0.00043841,5]
[321576757,1712321443791,-500.0,0.00043841,5]
[321576758,1712321443800,-500.0,0.00043842,5]
[321576759,1712321443810,-500.0,0.00043842,5]
[321576760,1712321443820,-500.0,0.00043842,5]
[321576761,1712321443833,-500.0,0.00043842,5]
[321576762,1712321443843,-500.0,0.00043842,5]
[321576763,1712321443854,-932.27,0.00043842,5]
[321576764,1712321443863,-504.15914635,0.00043842,5]
[321576765,1712321443872,-3190.92,0.00043842,5]
[321576766,1712321443881,-500.0,0.00043842,5]
[321576767,1712321443891,-500.0,0.00043842,5]
[321576768,1712321443900,-5693.2,0.00043842,5]
[321576769,1712321443912,-1006.74,0.00043842,5]
[321576770,1712321443922,-500.0,0.00043842,5]
[321576771,1712321443931,-500.0,0.00043842,5]
[321576772,1712321443940,-500.0,0.00043842,5]
[321576773,1712321443950,-500.0,0.00043842,5]
[321576774,1712321443960,-501.13499179,0.00043842,5]
[321576775,1712321443970,-500.0,0.00043842,5]
[321576776,1712321443978,-8333.33,0.00043842,5]
[321576777,1712321443988,-603.41,0.00043842,5]
[321576778,1712321443998,-500.0,0.00043842,5]
[321576780,1712321444007,-799.23,0.00043842,5]
[321576782,1712321444016,-4292.82,0.00043842,5]
[321576785,1712321444026,-500.0,0.00043842,5]
[321576786,1712321444035,-7511.73,0.00043842,5]
[321576788,1712321444044,-501.89563018,0.00043842,5]
[321576790,1712321444053,-500.0,0.00043842,5]
[321576792,1712321444062,-500.0,0.00043842,5]
[321576794,1712321444071,-500.0,0.00043842,5]
[321576796,1712321444080,-35728.75,0.00043842,5]
[321576798,1712321444089,-500.0,0.00043842,5]
[321576800,1712321444099,-500.0,0.00043842,5]
[321576802,1712321444108,-500.0,0.00043842,5]
[321576804,1712321444117,-7820.76,0.00043842,5]
[321576806,1712321444126,-2382.82,0.00043842,5]
[321576808,1712321444136,-500.0,0.00043842,5]
[321576810,1712321444145,-500.0,0.00043842,5]
[321576812,1712321444154,-555.19701153,0.00043842,5]
[321576814,1712321444164,-555.11,0.00043842,5]
[321576816,1712321444173,-500.0,0.00043842,5]
[321576818,1712321444182,-500.0,0.00043842,2]
[321576820,1712321444192,-1502.74,0.00043842,5]
[321576822,1712321444201,-2810.47,0.00043842,5]
[321576824,1712321444211,-500.0,0.00043842,5]
[321576826,1712321444220,-500.0,0.00043842,5]
[321576828,1712321444230,-557.66822292,0.00043842,5]
[321576830,1712321444239,-4299.7,0.00043842,5]
[321576832,1712321444248,-500.0,0.00043842,5]
[321576834,1712321444258,-500.0,0.00043842,5]
[321576837,1712321444268,-500.0,0.00043842,5]
[321576839,1712321444277,-500.0,0.00043842,5]
[321576840,1712321444286,-502.13067898,0.00043842,5]
[321576843,1712321444295,-550.56537976,0.00043842,5]
[321576844,1712321444304,-797.82,0.00043842,5]
[321576846,1712321444313,-610.59454447,0.00043842,5]
[321576848,1712321444322,-500.0,0.00043842,5]
[321576850,1712321444331,-500.0,0.00043842,5]
[321576852,1712321444341,-500.0,0.00043842,5]
[321576855,1712321444352,-500.0,0.00043842,5]
[321576857,1712321444362,-51743.8997908,0.00043843,5]
[321576858,1712321444371,-500.0,0.00043843,5]
[321576860,1712321444380,-500.0,0.00043843,5]
[321576863,1712321444389,-500.0,0.00043843,5]
[321576865,1712321444401,-500.0,0.00043843,5]
[321576866,1712321444410,-500.0,0.00043843,5]
[321576869,1712321444419,-214.5244106,0.00043843,5]
[321576871,1712321444434,-500.0,0.00043843,5]
[321576873,1712321444443,-500.0,0.00043843,5]
[321576875,1712321444451,-500.0,0.00043843,5]
[321576877,1712321444460,-500.0,0.00043843,5]
[321576879,1712321444470,-500.0,0.00043843,5]
[321576880,1712321444479,-500.0,0.00043843,5]
[321576883,1712321444488,-500.0,0.00043843,5]
[321576884,1712321444498,-500.0,0.00043843,5]
[321576886,1712321444507,-500.0,0.00043843,5]
[321576889,1712321444516,-500.0,0.00043843,5]
[321576890,1712321444526,-502.05085911,0.00043843,5]
[321576892,1712321444535,-500.0,0.00043843,5]
[321576895,1712321444544,-513.64375556,0.00043843,5]
[321576896,1712321444555,-717.01,0.00043843,5]
[321576898,1712321444565,-592.96352232,0.00043843,5]
[321576901,1712321444574,-500.0,0.00043843,5]
[321576903,1712321444583,-500.0,0.00043843,5]
[321576905,1712321444592,-501.94390694,0.00043843,5]
[321576906,1712321444603,-506.28946276,0.00043843,5]
[321576908,1712321444613,-500.0,0.00043843,5]
[321576910,1712321444621,-513.5757299,0.00043843,5]
[321576912,1712321444631,-500.0,0.00043843,5]
[321576914,1712321444640,-500.0,0.00043843,5]
[321576916,1712321444649,-500.0,0.00043843,5]
[321576918,1712321444658,-639.69385496,0.00043843,5]
[321576920,1712321444667,-500.0,0.00043843,5]
[321576922,1712321444676,-500.0,0.00043843,5]
[321576924,1712321444685,-462.98328465,0.00043843,5]
[321576926,1712321444694,-503.29431866,0.00043843,5]
[321576928,1712321444703,-500.0,0.00043843,5]
[321576930,1712321444712,-322.71472644,0.00043843,5]
[321576932,1712321444722,-500.0,0.00043843,5]
[321576934,1712321444732,-502.82656281,0.00043843,5]
[321576936,1712321444741,-557.8983909,0.00043843,5]
[321576938,1712321444750,-500.0,0.00043843,5]
[321576940,1712321444759,-500.0,0.00043843,5]
[321576942,1712321444768,-500.0,0.00043843,5]
[321576944,1712321444777,-501.57523464,0.00043843,5]
[321576946,1712321444786,-500.96776141,0.00043843,5]
[321576948,1712321444795,-500.0,0.00043843,5]
[321576950,1712321444804,-501.5449309,0.00043843,5]
[321576952,1712321444814,-500.75649508,0.00043843,5]
[321576954,1712321444826,-500.0,0.00043843,5]
[321576956,1712321444835,-500.0,0.00043843,5]
[321576958,1712321444844,-500.0,0.00043843,5]
[321576960,1712321444856,-1645.42,0.00043843,5]
[321576962,1712321444865,-503.18163469,0.00043843,5]
[321576964,1712321444874,-503.9547181,0.00043843,5]
[321576966,1712321444883,-500.0,0.00043843,5]
[321576968,1712321444892,-500.0,0.00043843,5]
[321576971,1712321444903,-503.12039216,0.00043843,5]
[321576973,1712321444912,-603.76024405,0.00043843,5]
[321576974,1712321444923,-500.0,0.00043843,5]
[321576976,1712321444933,-505.51089623,0.00043843,5]
[321576978,1712321444942,-307.51897264,0.00043843,5]
[321576981,1712321444952,-537.34301772,0.00043843,5]
[321576983,1712321444962,-506.26006713,0.00043843,5]
[321576985,1712321444970,-506.596657,0.00043843,5]
[321576986,1712321444979,-500.0,0.00043843,5]
[321576987,1712321444989,-500.0,0.00043843,5]
[321576989,1712321444998,-506.05242412,0.00043843,5]
[321576991,1712321445007,-500.0,0.00043843,5]
[321576993,1712321445016,-500.0,0.00043843,5]
[321576995,1712321445025,-500.0,0.00043843,5]
[321576997,1712321445034,-500.0,0.00043843,5]
[321576999,1712321445043,-500.0,0.00043843,5]
[321577001,1712321445052,-500.72595541,0.00043843,5]
[321577003,1712321445061,-500.0,0.00043843,5]
[321577005,1712321445070,-1289.96858,0.00043843,7]
[321577007,1712321445079,-1289.96858,0.00043843,7]
[321577009,1712321445088,-1289.96858,0.00043843,7]
[321577011,1712321445097,-1289.96858,0.00043843,7]
[321577013,1712321445107,-1289.96858,0.00043843,7]
[321577015,1712321445116,-500.0,0.00043843,5]
[321577017,1712321445125,-1289.96858,0.00043843,7]
[321577019,1712321445135,-1289.96858,0.00043843,7]
[321577021,1712321445144,-1289.96858,0.00043843,7]
[321577023,1712321445153,-1289.96858,0.00043843,7]
[321577025,1712321445162,-1289.96858,0.00043843,7]
[321577027,1712321445171,-500.0,0.00043843,5]
[321577029,1712321445180,-500.0,0.00043843,5]
[321577031,1712321445189,-500.0,0.00043843,5]
[321577033,1712321445198,-155.28232525,0.00043843,120]
[321577035,1712321445207,-457.92587501,0.00043843,5]
[321577037,1712321445217,-502.2860714,0.00043843,5]
[321577038,1712321445226,-500.0,0.00043843,5]
[321577040,1712321445236,-500.0,0.00043843,5]
[321577042,1712321445245,-500.0,0.00043843,5]
[321577043,1712321445255,-3521.19,0.00043843,5]
[321577044,1712321445264,-500.0,0.00043843,5]
[321577045,1712321445276,-502.01270104,0.00043843,5]
[321577047,1712321445285,-21228.12,0.00043843,5]
[321577049,1712321445294,-503.78482727,0.00043843,5]
[321577051,1712321445303,-500.0,0.00043843,5]
[321577053,1712321445312,-3409.72,0.00043843,7]